Workbook

Sheet 표지
A2: 2019년도
A3: 세입 • 세출 결산서
A6: 학교법인동화학원

Sheet 기구 및 정현원표(동화고)
A1: 【서식 7】
A2: 기구 및 정·현원 일람표
A3: [ 작성기준 : 예산 - 3.1. 결산 - 2.28. ]
A5: 1. 일반 현황
A7: 법인설립 인 가 년 월 일 | B7: 이사장 인적사항 | P7: 전화번호
B8: 성명 (한자) | F8: 생년월일 | H8: 학력 | J8: 경럭 | P8: 법인 사무실 | R8: 이사장 자택
A9: 1950.6.5 | B9: 유 동 욱 (劉 東 旭) | F9: 1953.4.15 | H9: 중앙대학교 | J9: 유피부과의원장 | P9: (031) 563-2580 | R9: (031) 521-2595
A10: ※ 작성요령 : 관외법인도 작성하며 지역교육청에서는 법인별 제출 할 것.
A12: 2. 법인 정. 현원 현황 | S12: (단위 : 명)
A13: 구분 | B13: 사 무 직 | Q13: 기능직 | S13: 계
B14: 6급 | F14: 7급 | I14: 8급 | L14: 9급 | O14: 소계
A15: 정원 | B15: 0 | F15: 0 | I15: 0 | L15: 0 | O15: =SUM(B15:N15) -> 0 | Q15: 0 | S15: =O15+Q15 -> 0
A16: 현원 | B16: 0 | F16: 0 | I16: 0 | L16: 0 | O16: =SUM(B16:N16) -> 0 | Q16: 0 | S16: =O16+Q16 -> 0
A17: 증감 | B17: 0 | F17: 0 | I17: 0 | L17: 0 | O17: =O15-O16 -> 0 | Q17: =Q15-Q16 -> 0 | S17: =S15-S16 -> 0
A18: ※ 작성요령 : 관내법인만 작성.
A20: 3. 학교 교직원 정.현원 현황 | S20: (단위 : 명)
A21: 구분 | B21: 정규교원 | G21: 기간제교원 | J21: 일반직 | P21: 기능직 | S21: 합계
B22: 교장 | C22: 교감 | D22: 보직교사 | E22: 교사 | F22: 소계 | G22: 결원 보충 | H22: 기타 | I22: 소계 | J22: 5급 | K22: 6급 | L22: 7급 | M22: 8급 | N22: 9급 | O22: 소계 | P22: 8급 | Q22: 9급 | R22: 소계
A23: 정원 | B23: 1 | C23: 2 | D23: 12 | E23: 78 | F23: =SUM(B23:E23) -> 93 | G23: 0 | H23: 0 | I23: =SUM(G23:H23) -> 0 | J23: 1 | K23: 0 | L23: 2 | M23: 0 | N23: 0 | O23: =SUM(J23:N23) -> 3 | P23: 0 | Q23: 3 | R23: =SUM(P23:Q23) -> 3 | S23: =F23+O23+R23+I23 -> 99
A24: 현원 | B24: 1 | C24: 2 | D24: 12 | E24: 61 | F24: =SUM(B24:E24) -> 76 | G24: 17 | I24: =SUM(G24:H24) -> 17 | J24: 1 | K24: 0 | L24: 2 | M24: 0 | N24: 0 | O24: =SUM(J24:N24) -> 3 | P24: 0 | Q24: 3 | R24: =SUM(P24:Q24) -> 3 | S24: =F24+O24+R24+I24 -> 99
A25: 증감 | B25: =B23-B24 -> 0 | E25: 17 | F25: 17 | G25: -17 | H25: 0 | I25: -17 | J25: 0 | K25: 0 | L25: 0 | M25: 0 | N25: 0 | O25: 0 | P25: 0 | Q25: 0 | R25: 0 | S25: 0
A26: ※ 정원은 관할청에서 인정한 인원을 기재하고 현원은 현재 근무중인자(휴직자 포함, 기간제교사와 시간강사는 제외)를 작성한다.
A28: 4. 교육실무직원 현황 | S28: (단위 : 명)
A29: 구분 | B29: 교육실무직원
B30: 행정실무사 | F30: 영양사 | H30: 조리사 | J30: 조리실무사 | K30: 사서 | L30: - | N30: - | P30: - | S30: 계
A31: 정원 | B31: 4 | F31: 1 | H31: 1 | J31: 18 | K31: 1 | L31: 0 | N31: 0 | P31: 0 | R31: 0 | S31: =SUM(B31:R31) -> 25
A32: 현원 | B32: 4 | F32: 1 | H32: 1 | J32: 18 | K32: 1 | L32: 0 | N32: 0 | P32: 0 | R32: 0 | S32: =SUM(B32:R32) -> 25
A33: 증감 | B33: 0 | F33: 0 | H33: 0 | J33: =J31-J32 -> 0 | K33: 0 | L33: =M31-M32 -> 0 | N33: 0 | P33: 0 | R33: =R31-R32 -> 0 | S33: =S31-S32 -> 0
A34: ※ 직종에 따라 변경 작성

Sheet 기구 및 정현원(동화중)
A1: 【서식 7】
A2: 기구 및 정·현원 일람표
A3: [ 작성기준 : 예산 - 3.1. 결산 - 2.28. ]
A5: 1. 일반 현황
A7: 법인설립 인 가 년 월 일 | B7: 설립자 (한자) | D7: 이사장 인적사항 | P7: 전화번호
D8: 성명 (한자) | F8: 생년월일 | H8: 학력 | J8: 경럭 | P8: 법인 사무실 | R8: 이사장댁
A9: 1950.6.5 | B9: 유 경 화 (劉 景 華) | D9: 유 동 욱 (劉 東 旭) | F9: 1953.4.15 | H9: 중앙대학교 | J9: 유피부과의원장 | P9: (031) 563-2580 | R9: (031) 521-2595
A10: ※ 작성요령 : 관외법인도 작성하며 지역교육청에서는 법인별 제출 할 것.
A12: 2. 법인 정. 현원 현황 | S12: (단위 : 명)
A13: 구분 | B13: 사무직 | Q13: 기능직 | S13: 계
B14: 5급 | D14: 6급 | F14: 7급 | I14: 8급 | L14: 9급 | O14: 소계
A15: 정원 | B15: 0 | D15: 0 | F15: 0 | I15: 0 | L15: 0 | O15: =SUM(B15:N15) -> 0 | Q15: 0 | S15: =O15+Q15 -> 0
A16: 현원 | B16: 0 | D16: 0 | F16: 0 | I16: 0 | L16: 0 | O16: =SUM(B16:N16) -> 0 | Q16: 0 | S16: =O16+Q16 -> 0
A17: 증감 | B17: =B15-B16 -> 0 | D17: =D15-D16 -> 0 | F17: 0 | I17: 0 | L17: 0 | O17: =O15-O16 -> 0 | Q17: =Q15-Q16 -> 0 | S17: =S15-S16 -> 0
A18: ※ 작성요령 : 관내법인만 작성.
A20: 3. 학교 교직원 정.현원 현황 | S20: (단위 : 명)
A21: 구분 | B21: 정규교원 | G21: 기간제교원 | J21: 일반직 | P21: 기능직 | S21: 합계
B22: 교장 | C22: 교감 | D22: 보직 교사 | E22: 교사 | F22: 소계 | G22: 결원 보충 | H22: 기타 | I22: 소계 | J22: 5급 | K22: 6급 | L22: 7급 | M22: 8급 | N22: 9급 | O22: 소계 | P22: 8등급 | Q22: 9등급 | R22: 소계
A23: 정원 | B23: 1 | C23: 1 | D23: 10 | E23: 26 | F23: =SUM(B23:E23) -> 38 | G23: 0 | H23: 0 | I23: =SUM(G23:H23) -> 0 | J23: 0 | K23: 1 | L23: 0 | M23: 1 | N23: 0 | O23: =SUM(J23:N23) -> 2 | P23: 0 | Q23: 2 | R23: =SUM(P23:Q23) -> 2 | S23: =F23+O23+R23+I23 -> 42
A24: 현원 | B24: 1 | C24: 1 | D24: 10 | E24: 20 | F24: =SUM(B24:E24) -> 32 | G24: 6 | H24: 0 | I24: =SUM(G24:H24) -> 6 | J24: 0 | K24: 1 | L24: 0 | M24: 1 | N24: 0 | O24: =SUM(J24:N24) -> 2 | P24: 0 | Q24: 2 | R24: =SUM(P24:Q24) -> 2 | S24: =F24+O24+R24+I24 -> 42
A25: 증감 | B25: =B23-B24 -> 0 | C25: =C23-C24 -> 0 | D25: 0 | E25: 6 | F25: 6 | G25: -6 | H25: 0 | I25: -6 | J25: 0 | K25: 0 | L25: 0 | M25: 0 | N25: 0 | O25: 0 | P25: 0 | Q25: 0 | R25: 0 | S25: 0
A26: ※ 정원은 관할청에서 인정한 인원을 기재하고 현원은 현재 근무중인자(휴직자 포함, 기간제교사와 시간강사는 제외)를 작성한다.
A28: 4. 교육실무직원 현황 | S28: (단위 : 명)
A29: 구분 | B29: 비정규직
B30: 행정실무사 | D30: 영양사 | F30: 사서 | S30: 계
A31: 정원 | B31: 3 | D31: 0 | F31: 0 | H31: 0 | J31: 0 | K31: 0 | L31: 0 | N31: 0 | P31: 0 | R31: 0 | S31: =SUM(B31:R31) -> 3
A32: 현원 | B32: 3 | D32: 0 | F32: 0 | H32: 0 | J32: 0 | K32: 0 | L32: 0 | N32: 0 | P32: 0 | R32: 0 | S32: =SUM(B32:R32) -> 3
A33: 증감 | B33: 0 | D33: 0 | F33: 0 | H33: 0 | J33: =J31-J32 -> 0 | K33: 0 | L33: =M31-M32 -> 0 | N33: 0 | P33: 0 | R33: =R31-R32 -> 0 | S33: =S31-S32 -> 0
A34: ※ 직종에 따라 변경 작성

Sheet 결산총괄표
A1: 법인회계 결산 총괄표
A3: 1. 세입 | F3: (단위 : 원)
A4: 과별 | B4: 결산액 | C4: 구성비(%) | D4: 예산액 | E4: 집행잔액 | F4: 비고
A5: 1. 재산수입 | B5: 148,317,315 | C5: =SUM(B5/$B$11)*100 -> 59.34 | D5: 148,253,000 | E5: =SUM(B5-D5) -> 64,315
A6: 2. 과년도수입 | B6: 0 | C6: 0 | D6: 0 | E6: 0
A7: 3. 이월금 | B7: 100,290,055 | C7: 40.12 | D7: 100,291,000 | E7: -945
A8: 4. 기부원조금 | B8: 0 | C8: 0 | D8: 0 | E8: 0
A9: 5. 고정부채입금 | B9: 0 | C9: 0 | D9: 0 | E9: 0
A10: 6. 잡수입 | B10: 1,339,940 | C10: 0.54 | D10: 1,213,000 | E10: 126,940
A11: 세입합계 | B11: =SUM(B5:B10) -> 249,947,310 | C11: =SUM(C5:C10) -> 100.00 | D11: =SUM(D5:D10) -> 249,757,000 | E11: 190,310
A14: 2. 세출 | F14: (단위 : 원)
A15: 과별 | B15: 결산액 | C15: 구성비(%) | D15: 예산액 | E15: 집행잔액 | F15: 비고
A16: 1.이사회비 | B16: 700,000 | C16: =SUM(B16/$B$22)*100 -> 0.47 | D16: 700,000 | E16: =SUM(D16-B16) -> 0
A17: 2.사무비 | B17: 24,628,710 | C17: 16.48 | D17: 24,873,000 | E17: 244,290
A18: 3.재산조성비 | B18: 36,255,840 | C18: 24.26 | D18: 36,544,000 | E18: 288,160
A19: 4.전출금 | B19: 87,878,660 | C19: 58.80 | D19: 84,780,000 | E19: -3,098,660
A20: 5.잡지출 | B20: 0 | C20: 0 | D20: 2,860,000 | E20: 2,860,000
A21: 6.예비비 | B21: 0 | C21: 0 | D21: 100,000,000 | E21: 100,000,000
A22: 세출합계 | B22: =SUM(B16:B21) -> 149,463,210 | C22: =SUM(C16:C21) -> 100.00 | D22: =SUM(D16:D21) -> 249,757,000 | E22: =SUM(E16:E21) -> 100,293,790

Sheet 세입결산서
A1: 세입결산서
A2: (단위 : 원)
B3: 과 목 | E3: 결산액 | F3: 예산현액 | G3: 집행잔액 | H3: 산 출 기 초(단위:원) | J3: 과목해소 및 유의사항
B4: 관 | C4: 항 | D4: 목
B5: 1.재산수입 | E5: =E6+E13 -> 148,317,315 | F5: =F6+F13 -> 148,253,000 | G5: =F5-E5 -> △64,315
C6: 1.기본재산수입 | E6: =E7 -> 136,317,315 | F6: =F7 -> 136,253,000 | G6: =F6-E6 -> △64,315
D7: 1.기본재산수입 | E7: 136,317,315 | F7: 136,253,000 | G7: =F7-E7 -> △64,315 | H7: 토지임대료 | I7: 125,400,000 | J7: 토지(대지,전,답,임야 및 잡종지)의 임대수입
H8: 건물임대수입 | I8: 9,300,000 | J8: 건물임대수입
H9: 정기예금이자 | I9: 1,306,075 | J9: 정기예금이자는 2016년도 선급법인세, 2015년도에 납부한 법인세환급금을 구분하여 기재하고 2014년도 선급법인세 납부 증빙서 (금융기관별 금융소득원천징수명세서)를 반드시 첨부
H10: 법인세환급금 | I10: 311,240
C13: 2.재산매각대 | E13: =E14 -> 12,000,000 | F13: =F14 -> 12,000,000 | G13: =E13-F13 -> 0
D14: 1.재산매각대 | E14: 12,000,000 | F14: 12,000,000 | G14: =E14-F14 -> 0
B15: 5.이월금 | E15: =E16 -> 100,290,055 | F15: =F16 -> 100,291,000 | G15: =F15-E15 -> 945
C16: 1.전년도이월금 | E16: =E17+E18 -> 100,290,055 | F16: =F17+F18 -> 100,291,000 | G16: =F16-E16 -> 945
D17: 1.전년도잉여금 | E17: 290,055 | F17: 291,000 | G17: =F17-E17 -> 945 | H17: 전년도 불용액 중 이월사업비, 임대보증금미환급금을 제외한 금액 | I17: 290,055
D18: 3.임대보증금미환급금 | E18: 100,000,000 | F18: 100,000,000 | G18: =F18-E18 -> 0 | H18: 전년도 임대보증금 미환급에 따른 이월금 | I18: 200,000,000
B19: 6.기부원조금 | E19: =E20 -> 0 | F19: =F20 -> 0 | G19: =E19-F19 -> 0
C20: 1.기부원조금 | E20: =E21 -> 0 | F20: =F21 -> 0 | G20: =E20-F20 -> 0
D21: 1.기부원조금 | E21: 0 | F21: 0 | G21: =E21-F21 -> 0 | J21: 기부금은 집행용도를 구체적으로 작성하고, 세출예산서에 구체적으로 표기
B22: 7.고정부채입금 | E22: =+E23 -> 0 | F22: =+F23 -> 0 | G22: =E22-F22 -> 0
C23: 2.기타고정부채 | E23: =E24 -> 0 | F23: =F24 -> 0 | G23: =E23-F23 -> 0
D24: 1.임대보증금수입 | E24: 0 | F24: 0 | G24: =F24-E24 -> 0 | J24: ※ 당해년도에 임대계약 만료로 임차인이 변경될 경우 임대보증금의 세입세출이 있으면 반드시 법인회계계좌로 세입세출처리하고, 예산서에도 세입세출을 표기하여야 함.
B25: 8.잡수입 | E25: =E26+E30 -> 1,339,940 | F25: =F26+F30 -> 1,213,000 | G25: =F25-E25 -> △126,940
C26: 1.잡수입 | E26: =E27 -> 1,302,150 | F26: =F27 -> 1,194,000 | G26: =F26-E26 -> △108,150
D27: 1.잡수입 | E27: 1,302,150 | F27: 1,194,000 | G27: =F27-E27 -> △108,150 | H27: 법인세환급금 | I27: 1,198,610
H28: 과오납환급금 | I28: 103,540
C30: 2.예금이자 | E30: =E31 -> 37,790 | F30: =F31 -> 19,000 | G30: =F30-E30 -> △18,790
D31: 1.예금이자 | E31: 37,790 | F31: 19,000 | G31: =F31-E31 -> △18,790 | H31: 예금이자 | I31: 33,580
H32: 법인세환급금 | I32: 4,210
B33: 세 입 합 계 | E33: =E5+E15+E19+E22+E25 -> 249,947,310 | F33: =F5+F15+F19+F22+F25 -> 249,757,000 | G33: =F33-E33 -> △190,310

Sheet 세출결산서
A1: 세출결산서
A2: (단위 : 원)
B3: 과 목 | E3: 결산액 | F3: 예산현액 | G3: 집행잔액 | H3: 산 출 기 초(단위:원) | J3: 과목해소 및 유의사항
B4: 관 | C4: 항 | D4: 목
B5: 1.이사회비 | E5: =E6 -> 700,000 | F5: =F6 -> 700,000 | G5: =F5-E5 -> 0
C6: 1.이사회비 | E6: =E7 -> 700,000 | F6: =F7 -> 700,000 | G6: 0
D7: 1.이사회운영비 | E7: 700,000 | F7: 700,000 | G7: 0 | H7: 임원수당 | I7: 700,000 | J7: 임원수당 : 위원회참석 수당 등 실비변상
B8: 2.사무비 | E8: =+E9 -> 24,628,710 | F8: =+F9 -> 24,873,000 | G8: 244,290
C9: 2.수용비 | E9: =E10 -> 24,628,710 | F9: =F10 -> 24,873,000 | G9: 244,290
D10: 1.법인운영비 | E10: 24,628,710 | F10: 24,873,000 | G10: 244,290 | H10: 법인차량 관련 비용 | I10: 19,244,310 | J10: 공공요금 : 우편․전신․전화․전기․수도요금 등
H11: 세무비용 | I11: 4,400,000 | J11: 연료비 : 난방용 연료와 그 부대경비(공고 및 운반비를 포함한다)
H12: 경조사비 | I12: 980,000 | J12: 연료비 : 난방용 연료와 그 부대경비(공고 및 운반비를 포함한다)
H13: 인증서 비용 | I13: 4,400 | J13: 수용비, 재료비 : 각종재료 및 용품류와 도서대 등
B14: 3.재산조성비 | E14: =E15+E18 -> 36,255,840 | F14: =F15+F18 -> 36,544,000 | G14: =F14-E14 -> 288,160
C15: 1.시설비 | E15: =+E16+E17 -> 0 | F15: =+F16+F17 -> 0 | G15: 0
D16: 2.시설비 | E16: 0 | F16: 0 | G16: 0 | J16: 건물의 신, 증축비 및 부대경비(공고료 포함) ※ 비품이나 고정시설물도 건축공사와 일괄 시공시는 시설비에 편성
D17: 3.적립금 | E17: 0 | F17: 0 | G17: 0 | J17: 노후교실의 개축,증축 등을 위한 적립금을 집행할 경우 ※ 적립금은 관할청의 신고수리를 득한 경우 가능
C18: 2.재산관리비 | E18: =E19+E20 -> 36,255,840 | F18: =F19+F20 -> 36,544,000 | G18: 288,160
D19: 1.재산유지비 | E19: 550,000 | F19: 550,000 | G19: 0 | J19: 수익용재산(건물) 유지관리, 보수비 등
D20: 2.공과보험료 | E20: 35,705,840 | F20: 35,994,000 | G20: 288,160 | H20: 재산세 | I20: 23,849,280 | J20: 화재보험료 및 기타 공과금, 각종 세금
H21: 부가가치세 | I21: 11,589,990 | J21: ※ 법인세(주민세), 국공유지 사용료, 각종부담금, 적십자회비 등
H22: 화재보험료 | I22: 232,400 | J22: ※ 법인세(주민세), 국공유지 사용료, 각종부담금, 적십자회비 등
H23: 지역자원시설세 | I23: 29,770
H24: 인증서 비용 | I24: 4,400
B26: 4.전출금 | E26: =E27 -> 87,878,660 | F26: =F27 -> 84,780,000 | G26: =F26-E26 -> △3,098,660
C27: 1.전출금 | E27: =SUM(E28:E33) -> 87,878,660 | F27: =SUM(F28:F33) -> 84,780,000 | G27: =F27-E27 -> △3,098,660 | J27: 법정부담금 전출금, 법인지정사업비 전출금
D28: 1.고등학교법인전출금 | E28: 43,939,330 | F28: 42,390,000 | G28: =F28-E28 -> △1,549,330 | H28: 건강보험부담금 | I28: 43,202,200 | J28: ※ 반드시 학교급별로 구분하여 작성하고, 세부항목별로 작성
H29: 법인세환급금 | I29: 670,220
H30: 지방세환급금 | I30: 66,910
D31: 2.중학교법인전출금 | E31: 43,939,330 | F31: 42,390,000 | G31: =F31-E31 -> △1,549,330 | H31: 건강보험부담금 | I31: 43,477,850
H32: 법인세환급금 | I32: 419,610
H33: 지방세환급금 | I33: 41,870
B34: 9.잡지출 | E34: =E35 -> 0 | F34: =F35 -> 2,860,000 | G34: =F34-E34 -> 2,860,000
C35: 1.제지출 | E35: =SUM(E36:E36) -> 0 | F35: =SUM(F36:F36) -> 2,860,000 | G35: =F35-E35 -> 2,860,000
D36: 4.기타제지출 | E36: 0 | F36: 2,860,000 | G36: =F36-E36 -> 2,860,000 | J36: 법인협의회
B37: 10.예비비 | E37: =E38 -> 0 | F37: =F38 -> 100,000,000 | G37: =E37-F37 -> △100,000,000
C38: 1.예비비 | E38: =E39 -> 0 | F38: =F39 -> 100,000,000 | G38: =E38-F38 -> △100,000,000
D39: 1.예비비 | E39: 0 | F39: 100,000,000 | G39: =E39-F39 -> △100,000,000
B40: 세 출 합 계 | E40: =E5+E8+E14+E26+E34+E37 -> 149,463,210 | F40: =F5+F8+F14+F26+F34+F37 -> 249,757,000 | G40: =F40-E40 -> 100,293,790

Sheet 감사보고서

Sheet 성질별 조서
A1: 법인회계 결산 성질별조서
E4: (단위:원)
A5: 구분 | C5: 예산 성질별 내역
A6: 관명 | B6: 과목명 | C6: 결산액 | D6: 관내구성비 | E6: 전체구성비
A7: 이사회비 | B7: 이사회운영비 | C7: 700,000 | D7: 100.0 | E7: =(C7/$C$23)*100 -> 0.5
B8: 소계 | C8: =SUM(C7) -> 700,000 | D8: 100.0 | E8: 0.5
A9: 사무비 | B9: 법인 운영비 | C9: 24,628,710 | D9: 100.0 | E9: 16.5
B10: 소계 | C10: =SUM(C9) -> 24,628,710 | D10: 100.0 | E10: 16.5
A11: 재산조성비 | B11: 시설비 | C11: 0 | D11: =SUM(C11/$C$14)*100 -> 0.0 | E11: 0.0
B12: 재산유지비 | C12: 550,000 | D12: =SUM(C12/$C$14)*100 -> 1.5 | E12: 0.4
B13: 공과보험료 | C13: 35,705,840 | D13: =SUM(C13/$C$14)*100 -> 98.5 | E13: 23.9
B14: 소계 | C14: =SUM(C11:C13) -> 36,255,840 | D14: =SUM(C14/$C$14)*100 -> 100.0 | E14: 24.3
A15: 전출금 | B15: 고등학교법인전출금 | C15: 43,939,330 | D15: =SUM(C15/$C$18)*100 -> 50.0 | E15: 29.4
B16: 중학교법인전출금 | C16: 43,939,330 | D16: =SUM(C16/$C$18)*100 -> 50.0 | E16: 29.4
C17: 0 | D17: =SUM(C17/$C$18)*100 -> 0.0 | E17: =(C17/$C$23)*100 -> 0.0
B18: 소계 | C18: =SUM(C15:C17) -> 87,878,660 | D18: =SUM(C18/$C$18)*100 -> 100.0 | E18: 58.8
A19: 잡지출 | B19: 기타 잡지출 | C19: 0 | D19: 100.0 | E19: 0.0
B20: 소계 | C20: 0 | D20: 100.0 | E20: 0.0
A21: 예비비 | B21: 예비비 | C21: 0 | D21: 100.0 | E21: 0.0
B22: 소계 | C22: =SUM(C21) -> 0 | D22: 100.0 | E22: 0.0
A23: 총계 | C23: =SUM(C8,C10,C14,C18,C20,C22) -> 149,463,210 | D23: 100.0 | E23: 100.0

Sheet 법인회계 결산조서
A1: 법인회계 결산조서
A3: ㅇ 세입결산조서 | R3: (단위 : 원)
A4: 과 목 | D4: 예산액 (A) | E4: 이월등 증감액(B) | I4: 예산현액 (C=A+B) | K4: 징수결정액 (D) | M4: 수납액 (E) | O4: 불 납 결손액 (F) | Q4: 미수납액 (G=D-E-F)
A5: 관 | B5: 항 | C5: 목 | E5: 명시이월 | F5: 사고이월 | G5: 계속비이월 | H5: 계
A6: 1. 재산수입 | B6: 1. 기본재산수입 | C6: 1. 대지료 | D6: 136,253,000 | E6: 0 | F6: 0 | G6: 0 | H6: 0 | I6: =SUM(D6,H6) -> 136,253,000 | K6: 136,317,315 | M6: =SUM(K6) -> 136,317,315 | O6: 0 | Q6: =K6-M6-O6 -> 0
C7: 2. 기타수입 | D7: 0 | E7: 0 | F7: 0 | G7: 0 | H7: 0 | I7: 0 | K7: 0 | M7: 0 | O7: 0 | Q7: =K7-M7-O7 -> 0
C8: 3. 수험료 | D8: 0 | E8: 0 | F8: 0 | G8: 0 | H8: 0 | I8: 0 | K8: 0 | M8: 0 | O8: 0 | Q8: 0
B9: 2.재산매각대 | C9: 1.재산매각대 | D9: 12,000,000 | E9: 0 | F9: 0 | G9: 0 | H9: 0 | I9: =SUM(D9,H9) -> 12,000,000 | K9: 12,000,000 | M9: 12,000,000 | O9: 0 | Q9: =K9-M9-O9 -> 0
A10: 2. 과년도 수입 | B10: 1. 과년도 수입 | C10: 1.과년도수입 | D10: 0 | E10: 0 | F10: 0 | G10: 0 | H10: 0 | I10: 0 | K10: 0 | M10: 0 | O10: 0 | Q10: 0
A11: 3. 이월금 | B11: 1. 전년도 잉여금 | C11: 1.전년도 잉여금 | D11: 291,000 | E11: 0 | F11: 0 | G11: 0 | H11: 0 | I11: 291,000 | K11: 290,055 | M11: =SUM(K11) -> 290,055 | O11: 0 | Q11: 0
C12: 2.임대보증금미환급금 | D12: 100,000,000 | I12: 100,000,000 | K12: =SUM(D12) -> 100,000,000 | M12: =SUM(K12) -> 100,000,000 | O12: 0 | Q12: =K12-M12-O12 -> 0
A13: 4. 기부원조금 | B13: 1. 기부원조금 | C13: 1. 기부원조금 | D13: 0 | E13: 0 | F13: 0 | G13: 0 | H13: 0 | I13: 0 | K13: =SUM(D13) -> 0 | M13: =SUM(K13) -> 0 | O13: 0 | Q13: 0
A14: 5. 고정부채입금 | B14: 1. 기타고정부채 | C14: 1.임대보증금 | D14: 0 | E14: 0 | F14: 0 | G14: 0 | H14: 0 | I14: 0 | K14: =SUM(D14) -> 0 | M14: 0 | O14: 0 | Q14: 0
A15: 6. 잡수입 | B15: 1. 잡수입 | C15: 1.잡수입 | D15: 1,194,000 | E15: 0 | F15: 0 | G15: 0 | H15: 0 | I15: =SUM(D15,H15) -> 1,194,000 | K15: 1,302,150 | M15: =SUM(K15) -> 1,302,150 | O15: 0 | Q15: 0
C16: 2. 변상금 | D16: 0 | E16: 0 | F16: 0 | G16: 0 | H16: 0 | I16: 0 | K16: =SUM(D16) -> 0 | M16: 0 | O16: 0 | Q16: 0
C17: 3. 위약금 | D17: 0 | E17: 0 | F17: 0 | G17: 0 | H17: 0 | I17: 0 | K17: =SUM(D17) -> 0 | M17: 0 | O17: 0 | Q17: 0
B18: 2. 예금이자 | C18: 1.예금이자 | D18: 19,000 | E18: 0 | F18: 0 | G18: 0 | H18: 0 | I18: 19,000 | K18: 37,790 | M18: =SUM(K18) -> 37,790 | O18: 0 | Q18: 0
B19: 3. 물품매각대 | C19: 1. 불용물품매각대 | D19: 0 | E19: 0 | F19: 0 | G19: 0 | H19: 0 | I19: 0 | K19: =SUM(D19) -> 0 | M19: 0 | O19: 0 | Q19: 0
A20: 세 입 합 계 | D20: =SUM(D6:D19) -> 249,757,000 | E20: =SUM(E6:E19) -> 0 | F20: =SUM(F6:F19) -> 0 | G20: =SUM(G6:G19) -> 0 | H20: =SUM(H6:H19) -> 0 | I20: =SUM(I6:J19) -> 249,757,000 | K20: =SUM(K6:L19) -> 249,947,310 | M20: =SUM(M6:N19) -> 249,947,310 | O20: =SUM(O6:O19) -> 0 | Q20: =SUM(Q6:Q19) -> 0
A35: ㅇ 세출결산조서 | R35: (단위 : 원)
A36: 과 목 | D36: 예산 (A) | E36: 예산결정후 증감액(B) | L36: 예산현액 (C=A+B) | M36: 지출액 (D) | N36: 다음년도 이월액(E) | R36: 불용액 (F=C-D-E)
A37: 관 | B37: 항 | C37: 목 | E37: 명시이월 | F37: 사고이월 | G37: 계속비이월 | H37: 이용 | I37: 전용 | J37: 예비비 | K37: 계 | N37: 명시 | O37: 사고 | P37: 계속비 | Q37: 계
A38: 1.이사회비 | B38: 1. 이사회비 | C38: 1. 이사회운영비 | D38: 2,000,000 | E38: 0 | F38: 0 | G38: 0 | H38: 0 | I38: 0 | J38: 0 | K38: =SUM(E38:J38) -> 0 | L38: =SUM(D38) -> 2,000,000 | M38: 1,000,000 | N38: 0 | O38: 0 | P38: 0 | Q38: =SUM(N38:P38) -> 0 | R38: =L38-M38-Q38 -> 1,000,000
A39: 2. 사무비 | B39: 1. 인건비 | C39: 1. 봉급 | D39: 0 | E39: 0 | F39: 0 | G39: 0 | H39: 0 | I39: 0 | J39: 0 | K39: =SUM(E39:J39) -> 0 | L39: 0 | M39: 0 | N39: 0 | O39: 0 | P39: 0 | Q39: =SUM(N39:P39) -> 0 | R39: 0
C40: 2. 수당 | D40: 0 | E40: 0 | F40: 0 | G40: 0 | H40: 0 | I40: 0 | J40: 0 | K40: =SUM(E40:J40) -> 0 | L40: 0 | M40: 0 | N40: 0 | O40: 0 | P40: 0 | Q40: =SUM(N40:P40) -> 0 | R40: 0
C41: 3. 여비 | D41: 0 | E41: 0 | F41: 0 | G41: 0 | H41: 0 | I41: 0 | J41: 0 | K41: =SUM(E41:J41) -> 0 | L41: 0 | M41: 0 | N41: 0 | O41: 0 | P41: 0 | Q41: =SUM(N41:P41) -> 0 | R41: 0
B42: 2. 수용비 | C42: 1. 법인운영비 | D42: 6,025,000 | L42: =SUM(D42) -> 6,025,000 | M42: 4,454,040 | R42: 1,570,960
A43: 3.재산조성비 | B43: 1. 시설비 | C43: 1. 시설비 | D43: 0 | E43: 0 | F43: 0 | G43: 0 | H43: 0 | I43: 0 | J43: 0 | K43: =SUM(E43:J43) -> 0 | L43: 0 | M43: 0 | N43: 0 | O43: 0 | P43: 0 | Q43: =SUM(N43:P43) -> 0 | R43: 0
C44: 2. 적립금 | D44: 300,000,000 | E44: 0 | F44: 0 | G44: 0 | H44: 0 | I44: 0 | J44: 0 | K44: =SUM(E44:J44) -> 0 | L44: 300,000,000 | M44: 200,000,000 | N44: 0 | O44: 0 | P44: 0 | Q44: =SUM(N44:P44) -> 0 | R44: 100,000,000
B45: 2. 재산관리비 | C45: 1. 공과보험료 | D45: 32,258,000 | E45: 0 | F45: 0 | G45: 0 | H45: 0 | I45: 0 | J45: 0 | K45: =SUM(E45:J45) -> 0 | L45: 32,258,000 | M45: 33,508,390 | N45: 0 | O45: 0 | P45: 0 | Q45: =SUM(N45:P45) -> 0 | R45: -1,250,390
C46: 2. 재산유지비 | D46: 0 | L46: 0 | M46: 0 | R46: 0
A47: 4.전출금 | B47: 1. 전출금 | C47: 1. 고등학교 | D47: 40,430,000 | E47: 0 | F47: 0 | G47: 0 | H47: 0 | I47: 0 | J47: 0 | K47: =SUM(E47:J47) -> 0 | L47: 40,430,000 | M47: 41,601,800 | N47: 0 | O47: 0 | P47: 0 | Q47: =SUM(N47:P47) -> 0 | R47: -1,171,800
C48: 2. 중학교 | D48: 40,430,000 | L48: 40,430,000 | M48: 41,601,800 | R48: -1,171,800
C49: 3. 시설비 | D49: 0 | E49: 0 | F49: 0 | G49: 0 | H49: 0 | I49: 0 | J49: 0 | K49: =SUM(E49:J49) -> 0 | L49: 0 | M49: 0 | N49: 0 | O49: 0 | P49: 0 | Q49: =SUM(N49:P49) -> 0 | R49: 0
A50: 5. 잡지출 | B50: 1. 제지출 | C50: 1. 보상금 | D50: 0 | E50: 0 | F50: 0 | G50: 0 | H50: 0 | I50: 0 | J50: 0 | K50: =SUM(E50:J50) -> 0 | L50: 0 | M50: 0 | N50: 0 | O50: 0 | P50: 0 | Q50: =SUM(N50:P50) -> 0 | R50: 0
C51: 2.소송비 | D51: 0 | E51: 0 | F51: 0 | G51: 0 | H51: 0 | I51: 0 | J51: 0 | K51: =SUM(E51:J51) -> 0 | L51: 0 | M51: 0 | N51: 0 | O51: 0 | P51: 0 | Q51: =SUM(N51:P51) -> 0 | R51: 0
C52: 3. 기타제지출 | D52: 2,860,000 | E52: 0 | F52: 0 | G52: 0 | H52: 0 | I52: 0 | J52: 0 | K52: =SUM(E52:J52) -> 0 | L52: 2,860,000 | M52: 2,860,000 | N52: 0 | O52: 0 | P52: 0 | Q52: =SUM(N52:P52) -> 0 | R52: 0
A53: 6.예비비 | B53: 1.예비비 | C53: 1.예비비 | D53: 0 | E53: 0 | F53: 0 | G53: 0 | H53: 0 | I53: 0 | J53: 0 | K53: =SUM(E53:J53) -> 0 | L53: 0 | M53: 0 | N53: 0 | O53: 0 | P53: 0 | Q53: =SUM(N53:P53) -> 0 | R53: 0
A54: 세출합계 | D54: =SUM(D38:D53) -> 424,003,000 | E54: =SUM(E38:E52) -> 0 | F54: 0 | G54: 0 | H54: 0 | I54: 0 | J54: 0 | K54: 0 | L54: =D54+K54 -> 424,003,000 | M54: =SUM(M38:M52) -> 325,026,030 | N54: =SUM(N38:N52) -> 0 | O54: =SUM(O38:O52) -> 0 | P54: =SUM(P38:P52) -> 0 | Q54: =SUM(Q38:Q52) -> 0 | R54: 98,976,970
B55: * 작성요령 : | C55: 1. 과목은 관, 항까지 작성한다.
C56: 2. 예산외의 비목을 충당하기 위하여 예비비를 지출한 때에는 예산에 준한 과목에
C57: 이를 정리하고 해당 " 관"의 결산액에 합산한다.

Sheet 집행잔액조서
A1: 집 행 잔 액 조 서
A3: 1. 세입총액 : 일금 | C3: 249,947,310원
A5: 2. 세출총액 : 일금 | C5: 149,463,210원
A7: 3. 차인잔액 : 일금 | C7: =SUM(C3-C5) -> 100,484,100원 | I7: =C7=E19 -> FALSE
A9: ㅇ 잉여금 현황
H10: (단위 : 원)
A11: 세계잉여금(A) | B11: 이 월 액(B) | F11: 임대보증금미환급금 | G11: 적립금 (법인비) © | H11: 순세계잉여금 | I11: 비고
B12: 소계 | C12: 명시이월 | D12: 사고이월 | E12: 계속비이월
A13: =C7 -> 100,484,100 | B13: =SUM(C13:E13) -> 0 | C13: 0 | D13: 0 | E13: 0 | F13: 100,000,000 | H13: =A13-B13-F13 -> 484,100
A15: ㅇ 순세계잉여금 내역
H16: (단위 : 원)
A17: 항 목 | B17: 상세내역 | E17: 이월액 | G17: 이월사유 | H17: 비고
A18: 법인비 | B18: 집행잔액 | E18: 484,100 | G18: 집행잔액
A19: 합 계 | E19: =SUM(E18) -> 484,100

Sheet 수익용기본재산 수입실적 조서
A1: 【서식 45】
A2: 수익용기본재산 수입실적 조서
A4: 가. 토지(대지, 임야, 전, 답) 및 건물
A5: (단위 : 원)
A6: 재산의종류 | B6: 면적(㎥) | C6: 평가액 | D6: 총수입액 | E6: 필요경비 | F6: 순수익액 | G6: 운영방법
A7: 건물 | B7: 269.63 | C7: 4,533,160,790 | D7: 125,400,000 | E7: 33,745,990 | F7: 94,527,170 | G7: 평가액은 건물과 토지합계
A8: 토지 | B8: 8,654 | C8: 891,871,100 | D8: 9,300,000 | E8: 1,925,680 | F8: 7,374,320
A11: 나. 현금 및 유가증권
A12: 재산의종류 | B12: 금액 | C12: 이율 또는 배당금 | D12: 총수입액 | E12: 필요경비 | F12: 순수익액 | G12: 비고
A13: 예금 | B13: 100,000,000 | C13: =SUM(D13/B13) -> 1.54% | D13: 1,543,815 | E13: 237,740 | F13: =SUM(D13-E13) -> 1,306,075
A15: 나. 수입액 집행내역
A16: (단위 : 원)
A17: 재산의 | B17: 순수익액 | C17: 집 행 내 역 | J17: 계
A18: 종 류 | C18: 법 정 | D18: 법 인 | E18: 교육시설부 담 금 | F18: 제 세 | G18: 감 가 | H18: 학교 | I18: 재투자비
C19: 부담금 | D19: 운영비 | F19: 공과금 | G19: 삼각비 | H19: 운영비
A20: 건물 | B20: =SUM(F7) -> 94,527,170 | C20: 79,610,000 | J20: =SUM(C20:I20) -> 79,610,000
A21: 토지 | B21: 9,300,000 | D21: 9,300,000 | J21: =SUM(C21:I21) -> 9,300,000
A22: 현금 | B22: =SUM(F13) -> 1,306,075 | D22: 2,050,974 | J22: =SUM(C22:I22) -> 2,050,974
A23: 계 | B23: =SUM(B20:B22) -> 105,133,245 | C23: =SUM(C20:C22) -> 79,610,000 | D23: =SUM(D20:D22) -> 11,350,974 | E23: 0 | F23: 0 | G23: 0 | H23: 0 | I23: 0 | J23: =SUM(J20:J22) -> 90,960,974
